Cogmind - Beta 9.4 @@@ ROGUE MODE // 2020.03.07 @ 04:02:29 Player: Frank Result: Destroyed by as-90945 with Assembled Heavy Rifle Performance ------------- Evolutions (0) 0 Regions Visited (3) 600 Robots Destroyed (8) 40 Value Destroyed (95) 95 Prototype IDs (22) 440 Alien Tech Used (0) 0 Bonus (300) 300 TOTAL SCORE: 1475 Bonus ------- Aligned with FarCom 300 Cogmind --------- Core Integrity 0/250 Matter 250/300 Energy 97/100 System Corruption 10% Temperature Cool (1) Movement Walking (120) Location -10/Exiles Parts ------- > --- POWER (1) -------- (None) > --- PROPULSION (2) --- Aluminum Leg Aluminum Leg > --- UTILITY (2) ------ Heat Sink Improved Heat Sink > --- WEAPON (2) ------- Longsword +1 > --- INVENTORY (4) ---- Light Treads Light Treads Particle Gun Mining Laser Peak State ------------ > --- POWER ------------ (None) > --- PROPULSION ------- Aluminum Leg Aluminum Leg > --- UTILITY ---------- Heat Sink Improved Heat Sink > --- WEAPON ----------- Beam Cannon Longsword +1 > --- INVENTORY -------- Light Treads Light Treads Particle Gun Mining Laser [Rating: 15] Favorites ----------- Power Light Ion Engine Engine Light Ion Engine Propulsion Aluminum Leg Treads Light Treads Leg Aluminum Leg Wheel Compact Wheel Utility Heat Sink Device Heat Sink Storage Small Storage Unit Weapon Beam Cannon Energy Gun Small Laser Energy Cannon Beam Cannon Special Weapon Mining Laser Slashing Weapon Longsword +1 Build | -11 -10 -10 -10 ------- Run | Scr Mat Min Exi Slots Evolved . | . . . . Power . | . . . . Propulsion . | . . . . Utility . | . . . . Weapon . | . . . . Parts Attached 19 | 6 2 10 1 Power 1 | 1 . . . Engine 1 | 1 . . . Core . | . . . . Reactor . | . . . . Propulsion 6 | 2 . 4 . Treads 2 | . . 2 . Leg 2 | . . 2 . Wheel 2 | 2 . . . Hover . | . . . . Flight . | . . . . Utility 4 | 1 1 2 . Device 2 | . . 2 . Storage 2 | 1 1 . . Processor . | . . . . Hackware . | . . . . Protection . | . . . . Artifact . | . . . . Weapon 8 | 2 1 4 1 Energy Gun 4 | 2 1 1 . Energy Cannon 2 | . . 2 . Ballistic Gun . | . . . . Ballistic Cannon . | . . . . Launcher . | . . . . Special Weapon 1 | . . 1 . Impact Weapon . | . . . . Slashing Weapon 1 | . . . 1 Piercing Weapon . | . . . . Special Melee Weapon . | . . . . Unidentified Prototypes . | . . . . Parts Lost 9 | . . 8 1 Power 1 | . . 1 . Propulsion 2 | . . 2 . Utility 2 | . . 2 . Weapon 4 | . . 3 1 Highest Loss Streak 8 | . . 8 1 Average Slot Usage (%) 75 | . 93 59 85 Engine 1 | . 14 . . Treads 6 | . . 16 . Leg 18 | . . 9 28 Wheel 1 | . 28 . . Device 18 | . . 9 28 Storage 1 | . 23 1 . Energy Gun 4 | . 26 7 . Energy Cannon 12 | . . 13 14 Special Weapon 7 | . . . 12 Naked Turns 6 | . . 6 . Heaviest Build 12 | 11 12 12 8 Greatest Support 40 | 32 32 40 20 Greatest Overweight (x) 3 | . . 3 . Average Overweight (x) . | . . . . Largest Inventory Capacity 6 | 6 6 6 4 Average Capacity 4 | 5 6 4 4 Most Carried 6 | 4 6 6 4 Average Carried 3 | 2 5 2 4 Final Capacity 6 | 6 6 4 4 Final Carried 6 | 4 6 4 4 Class Distribution -------------------- 64% | Scavenger-Mutant 35% | Mutant Dominant Class ---------------- Mutant | -10/Materials Mutant | -10/Mines Scavenger-Mutant | -10/Exiles Resources | -11 -10 -10 -10 ----------- Run | Scr Mat Min Exi Matter Collected 389 | 257 30 102 . Remotely . | . . . . Salvage Created 206 | . 49 132 25 Parts 13 | . 3 10 . Haulers Intercepted . | . . . . Recyclers Shooed 1 | . 1 . . Parts Field Recycled . | . . . . Retrieved Matter . | . . . . Parts Self-Destructed . | . . . . Prevented . | . . . . Kills | -11 -10 -10 -10 ------- Run | Scr Mat Min Exi Combat Hostiles Destroyed 3 | . . 3 . Cannons 3 | . . 3 . Classes Destroyed 4 | . 1 2 1 Worker 4 | . 2 2 . Grunt 2 | . . 2 . Zionite 1 | . . . 1 Assembled 1 | . . 1 . Best Kill Streak 2 | . 2 1 1 Combat Bots Only 1 | . . 1 . Max Kills in Single Turn 1 | . 1 1 1 Gunslinging . | . . . . Exploded . | . . . . Melee . | . . . . Uniques/NPCs Destroyed . | . . . . Combat | -11 -10 -10 -10 -------- Run | Scr Mat Min Exi Damage Taken 882 | . 35 640 207 Core 260 | . . 234 26 Absorbed by Shields . | . . . . Core Remaining (%) 100 | 100 . . . Volleys Fired 19 | . 3 15 1 Largest 2 | . 2 2 1 Hottest 100 | . 90 100 60 Shots Fired 36 | . 6 28 2 Gun 18 | . 6 12 . Cannon 18 | . . 16 2 Launcher . | . . . . Special . | . . . . Kinetic . | . . . . Thermal 30 | . 3 25 2 Explosive . | . . . . Electromagnetic 6 | . 3 3 . Robot Hit Streak 7 | . 3 6 7 Robot Miss Streak 4 | . 1 4 1 Penetration Max . | . . . . Secondary Targets . | . . . . Shots Hit Robots 19 | . 4 14 1 Core Hits 9 | . 2 6 1 Critical Hits . | . . . . Critical Kills . | . . . . Critical Parts Destroyed . | . . . . Melee Attacks . | . . . . Impact . | . . . . Slashing . | . . . . Piercing . | . . . . Sneak Attacks . | . . . . Combat Hostiles . | . . . . Follow-up Attacks . | . . . . Damage Inflicted 259 | . 59 182 18 Guns 97 | . 52 45 . Cannons 155 | . . 137 18 Explosions . | . . . . Melee . | . . . . Ramming 7 | . 7 . . Kinetic . | . . . . Thermal 203 | . 24 161 18 Explosive . | . . . . Electromagnetic 49 | . 28 21 . Impact . | . . . . Slashing . | . . . . Piercing . | . . . . Highest Corruption 10 | . . 10 10 Average Corruption 9 | . . 9 10 Corruption Purged . | . . . . Effects 64 | . . 29 35 Message Errors 12 | . . 6 6 Matter Fused 8 | . . 5 3 Heat Flow Errors 9 | . . 3 6 Energy Discharges 3 | . . 1 2 Data Loss (minor) 8 | . . 4 4 Data Loss (major) 2 | . . . 2 Misfires 3 | . . 2 1 Alerts 3 | . . 1 2 Misdirections 10 | . . 2 8 Targeting Errors 5 | . . 4 1 Weapon Failures 1 | . . 1 . Overload Shots . | . . . . Overflow Damage . | . . . . Projectiles . | . . . . Explosions . | . . . . Melee . | . . . . Knockbacks . | . . . . Impact . | . . . . Kinetic . | . . . . Secondary . | . . . . Self-Inflicted Damage 3 | . 3 . . Shots . | . . . . Rammed 2 | . 2 . . Targets Rammed 2 | . 2 . . Kicked . | . . . . Crushed . | . . . . Highest Temperature 251 | . 40 251 246 Average Temperature 66 | . 20 63 95 Received Heat Transfer 107 | . 18 89 . Siege Activations . | . . . . Robots Corrupted . | . . . . Combat Hostiles . | . . . . Parts Fried . | . . . . Impact Corruptions . | . . . . Robots Melted . | . . . . Combat Hostiles . | . . . . Parts Melted . | . . . . Heat Transferred 457 | . 74 346 37 Parts Sabotaged . | . . . . Parts Stolen . | . . . . Parts Stripped . | . . . . Power Chain Reactions . | . . . . Missiles Intercepted . | . . . . Alert | -11 -10 -10 -10 ------- Run | Scr Mat Min Exi Peak Influence 50 | . 10 50 . Average Influence 11 | . 5 13 . Maximum Alert Level . | . . . . Low Security (%) 100 | 100 100 100 . Level 1 . | . . . . Level 2 . | . . . . Level 3 . | . . . . Level 4 . | . . . . Level 5 . | . . . . High Security . | . . . . Max Security . | . . . . Squads Dispatched 1 | . 1 . . Investigation . | . . . . Extermination . | . . . . Reinforcement 1 | . 1 . . Assault . | . . . . Garrison . | . . . . Intercept . | . . . . Construction Impeded . | . . . . Haulers Reinforced . | . . . . Stealth | -11 -10 -10 -10 --------- Run | Scr Mat Min Exi Distress Signals 2 | . 2 . . Communications Jammed . | . . . . Distress Signals . | . . . . Times Spotted 39 | . 5 27 7 Peak Tracking Total 15 | . 4 15 9 Tactical Retreats 3 | . . 3 . Traps | -11 -10 -10 -10 ------- Run | Scr Mat Min Exi Traps Triggered . | . . . . Indirectly . | . . . . Trap Hack Attempts . | . . . . Triggered . | . . . . Disarmed . | . . . . Reprogrammed . | . . . . Reused . | . . . . Traps Extracted . | . . . . Installed . | . . . . Triggered . | . . . . Machines | -11 -10 -10 -10 ---------- Run | Scr Mat Min Exi Machines Disabled . | . . . . Max in Single Turn . | . . . . Machines Sabotaged . | . . . . Garrisons Compromised . | . . . . Overloaded Fab Kills . | . . . . Fab Network Shutdowns . | . . . . Hacking | -11 -10 -10 -10 --------- Run | Scr Mat Min Exi Machines Accessed 5 | . . . 5 Terminals . | . . . . Fabricators . | . . . . Repair Stations . | . . . . Recycling Units . | . . . . Scanalyzers . | . . . . Garrison Access . | . . . . Total Hacks 29 | . . . 29 Successful 29 | . . . 29 Failed . | . . . . Catastrophic . | . . . . Database Lockouts . | . . . . Manual 3 | . . . 3 Terminals . | . . . . Fabricators . | . . . . Repair Stations . | . . . . Recycling Units . | . . . . Scanalyzers . | . . . . Garrison Access . | . . . . Terminal Hacks 29 | . . . 29 Record 28 | . . . 28 EX-Prototype ID Bank 1 | . . . 1 Fabricator Hacks . | . . . . Repair Station Hacks . | . . . . Recycling Unit Hacks . | . . . . Scanalyzer . | . . . . Garrison Access Hacks . | . . . . Unauthorized Hacks . | . . . . Terminals . | . . . . Fabricators . | . . . . Repair Stations . | . . . . Recycling Units . | . . . . Scanalyzers . | . . . . Garrison Access . | . . . . Data Cores Recovered . | . . . . Used . | . . . . Hacking Detections . | . . . . Full Trace Events . | . . . . Feedback Events . | . . . . Feedback Blocked . | . . . . Robot Schematics Acquired . | . . . . Robots Built . | . . . . Matter . | . . . . Time . | . . . . Total Robot Build Rating . | . . . . Part Schematics Acquired . | . . . . Parts Built . | . . . . Matter . | . . . . Time . | . . . . Total Part Build Rating . | . . . . Parts Repaired . | . . . . Time . | . . . . Parts Recycled . | . . . . Recycled Matter . | . . . . Retrieved Matter . | . . . . Retrieved Components . | . . . . Parts Scanalyzed . | . . . . Part Schematics Acquired . | . . . . Parts Damaged . | . . . . Bothacking | -11 -10 -10 -10 ------------ Run | Scr Mat Min Exi Used RIF Installer . | . . . . Robots Hacked . | . . . . Non-combat . | . . . . Combat . | . . . . Robot Hacks Applied . | . . . . Relay Couplers Released . | . . . . Robots Rewired . | . . . . Allies Hacked . | . . . . Hacks Repelled . | . . . . Allies | -11 -10 -10 -10 -------- Run | Scr Mat Min Exi Total Allies 1 | . . 1 . Largest Group 1 | . . 1 1 Highest-Rated Group 31 | . . 31 31 Highest-Rated Ally 31 | . . 31 31 Total Orders . | . . . . Ally Attacks . | . . . . Total Damage . | . . . . Kills . | . . . . Allies Corrupted . | . . . . Allies Melted . | . . . . Intel | -11 -10 -10 -10 ------- Run | Scr Mat Min Exi Robot Analysis Total . | . . . . Derelict Logs Recovered 1 | . . 1 . Drone Launches . | . . . . Drone Recoveries . | . . . . Exploration | -11 -10 -10 -10 ------------- Run | Scr Mat Min Exi Turns Passed 1484 | 63 87 567 767 Spaces Moved 1080 | 53 69 327 631 Core 29 | 10 . 19 . Treads 182 | . . 182 . Legs 751 | . . 120 631 Wheels 118 | 43 69 6 . Hover . | . . . . Flight . | . . . . Fastest Speed 50 | 50 100 50 120 Average Speed 123 | 90 100 140 120 Slowest Speed 200 | 100 100 200 120 Overloaded Moves . | . . . . Propulsion Burnouts . | . . . . Robots Hopped . | . . . . Cave-ins Triggered . | . . . . Exploration Rate (%) 45 | 3 20 67 92 Regions Visited 3 Branch Regions 2 Pre-discovered Areas 1 | . . . 1 Known Exits Taken . | . . . . Unknown Exits Taken 3 | 1 1 1 . Scrap Searched . | . . . . Spaces Dug . | . . . . Terrain Destroyed . | . . . . Melee . | . . . . Projectile . | . . . . AOE . | . . . . Actions | -11 -10 -10 -10 --------- Run | Scr Mat Min Exi Total 1193 | 68 80 407 638 Wait 52 | . . 49 3 Move 1077 | 52 68 326 631 Hop . | . . . . Pick Up 20 | 10 3 6 1 Fast Attach 3 | . 2 1 . Attach 12 | 6 . 6 . Detach . | . . . . Swap 4 | . . 3 1 Drop 4 | . 2 1 1 Fire 19 | . 3 15 1 Melee . | . . . . Ram 2 | . 2 . . Kick . | . . . . Crush . | . . . . Escape Stasis . | . . . . Rewire . | . . . . Trap . | . . . . Miscellaneous . | . . . . Route ------- -11/Scrapyard -10/Materials -10/Mines -10/Exiles (discovered 1 exit: [*Min]) History --------- Turn | Location | Event 26 | -11/Scrapyard | Discovered new exit (range 16) 64 | -11/Scrapyard | Entered Materials 136 | -10/Materials | Discovered new exit (range 16) 151 | -10/Materials | Entered Mines 152 | -10/Mines | Assembled infested the area 174 | -10/Mines | System corruption reached 10% 175 | -10/Mines | Core integrity fell below 50% 183 | -10/Mines | Core integrity fell below 20% 215 | -10/Mines | Lost 8 parts (1p2n2u3w) 308 | -10/Mines | Build established: Mutant 320 | -10/Mines | Learned Materials trap positions 678 | -10/Mines | Received a Mining Laser from a helpful Derelict 712 | -10/Mines | Deemed a non-threat by the Exiles lab entrance 713 | -10/Mines | Discovered new exit (range 5) 718 | -10/Mines | Entered Exiles 718 | -10/Exiles | Accompanied by 1 ally 751 | -10/Exiles | Met 8R-AWN 770 | -10/Exiles | Met EX-HEX 838 | -10/Exiles | Build established: Scavenger-Mutant 854 | -10/Exiles | Met EX-DEC 866 | -10/Exiles | Learned location of Zion (-7) 948 | -10/Exiles | Discovered new exit (range 14) 1058 | -10/Exiles | Visited The Gauntlet 1239 | -10/Exiles | Met EX-BIN 1263 | -10/Exiles | Aligned with FarCom system 1264 | -10/Exiles | Given EX-Vault access code 1378 | -10/Exiles | Opened EX-Vault 1389 | -10/Exiles | Found Longsword +1 1464 | -10/Exiles | Warned to stay clear of 0b10 Research branches 1468 | -10/Exiles | Attacked by the Exiles 1485 | -10/Exiles | Destroyed by as-90945 with Assembled Heavy Rifle Last Messages --------------- out a series of tuned electromagnetic waves is enough to redefine their targets. There's probably more we could do in this area. ** DEC: Like simultaneously trigger all the traps across a floor? Sounds good to me. 01445_ System corrupted: Component data lost. 01454_ System corrupted: Aluminum Leg stumbles. EX-BIN: Oh yeah, I'd suggest you stay away from the 0b10 Research branches, since the FarCom signals could be picked up there, but you're welcome to try if you really want to. And if we have to leave here due to unforeseen circumstances, don't worry the FarCom system will continue to maintain contact via our distributed network. 01468_ System corrupted: FCS attempts to trigger Beam Cannon. 01468_ System corrupted: Beam Cannon misfires. 01468_ EXILES: Hostile robot within lab perimeter. Defensive protocols time, folks! 01468_ 56-6GW(z) destroyed. 01470_ EX-BIN: "I just want to science!" 01477_ Machine disabled. 01480_ System corrupted: Beam Cannon targeting data glitched. 01484_ Beam Cannon destroyed. Map ----- +----------------------------------------------------+ | ??????????????????#"""" ## #????????????????? | | ??????????????????#""X" #????????????????? | | ??????????????????#" #????????????????? | | ??????????????????#" ## #????????????????? | | ??????????????????#""""""## #?#########??????? | | ??????????????????##"###### #?#"""""""#??????? | | ?????????????????? "?????# #?#"""""""#??????? | | ?????????????????"""??????# #?#"""""""#??????? | | ?????????????????"""?????## ###"" """"#??????? | | ?????????????????????????#" """"#??????? | | ?????????????????????????#" """#??????? | | ?????????????????????????#" """#??????? | | ?????????????????????????#" """#??????? | | ??????????########???????#" """#??????? | | ??????????# """#???????# """##?????? | | ??????????#"" """#???????## """""?????? | | ??????????#"" #????????# """##?????? | | ??????????#"" #????????#" "X" """""?????? | | ??????????#"" "#????????#" % """ # ?????? | | ??????????# ""#????????#" """""""""#??????? | | #?????????#"" ""#???????##" ###########??????? | | ##????????### ###??????##"" a #????????????????? | | ######???### ###?######" #????????????????? | | """#####X# #"###""""" a ##???????????????? | | """""" " " ##???###########? | | "" """ @ #####"""""""""## | | " " " """ """"# | | "" " | | ## a " """ | | ?## c " " | | ??## " " | | ???##" a a " | | ????#""" """""" a a | | ???##" ######""" | | ???#"" ""##????#####""" | | ??##""" """##?????????##""" | | ??#""" """##???????????#"""" | | ??#""" ""#???????????##"" | | ??#"" ########??####"""" | | ??#""" ## ####""" | | ??#"" """" | | ??##"" | | ???#"""" | | ???## " | | ????#" " "" """ | | ????#"""" ""## ##""" " " ""#" | | ????#"" ""#### ######""" """##""""" | | ????#" """"##??#? #????###""""######## | | ????#""" """#??????#??????######??????? | | ????## ""##?????????????????????????? | +----------------------------------------------------+ Best States ------------- Heat Dissipation 49 Energy Generation 10 Energy Capacity 125 Matter Stores 325 Matter Capacity 350 Sight Range 16 Terrain Scan Density 10 Evasion (%) 50 Recoil Reduction 2 Item Schematics ----------------- None Robot Schematics ------------------ None Fabricated ------------ Nothing Alien Tech Used ----------------- None Achievements -------------- Librarian Slippery One Challenges ------------ None Game ------ Seed PotentialBiocellComputer Manual? 0 Play Time 00:20:14 Cumulative 16.4 hours Start 2020.03.07 @ 03:43:36 End 2020.03.07 @ 04:02:29 Sessions 1 Manual Loads 0 Difficulty Rogue Special Mode None Game No. 38 Rogue 37 Adventurer 1 Explorer 0 Win Type - Total 0 Types 0/0/0/0/0/0/0 Lore% 16 Gallery% 27 Achievement% 16 Wizard Run 0 Options --------- ASCII 0 Keyboard 0 Movement Mouse Keybinds 0 Fullscreen 1 Font 36/Smallcaps Map View 76x50 Tactical HUD 1 Map Filters NONE Filters NONE Steam 1 RUN: 74e438e1-1bc7-4f8e-b429-66a6b64ce6b0